[Event "17th Aeroflot Open-A 2019"]
[Site "Moscow"]
[Date "2019.02.27"]
[Round "9.6"]
[White "Wei, Yi"]
[Black "Yuffa, Daniil"]
[Result "1-0"]
[ECO "E20"]
[WhiteElo "2733"]
[BlackElo "2578"]
[Annotator "ChessBase"]
[PlyCount "75"]
[EventDate "2019.02.19"]
[EventCountry "RUS"]
[SourceTitle "playchess.com"]
[Source "ChessBase"]
[SourceQuality "1"]
[TimeControl "40/5400+30:1800+30"]

1. d4 {[%emt 0:00:00]} Nf6 {[%emt 0:03:09]} 2. c4 {[%emt 0:00:00]} e6 {[%emt 0:00:05]} 3. Nc3 {[%emt 0:02:52]} Bb4 {[%emt 0:02:47]} 4. f3 {[%emt 0:02:00]} d5 {[%emt 0:01:02]} 5. a3 {[%emt 0:00:49]} Be7 {[%emt 0:02:24]} 6. e4 {[%emt 0:00:17]} dxe4 {[%emt 0:08:34]} 7. fxe4 {[%emt 0:00:05]} e5 {[%emt 0:01:49]} 8. d5 {[%emt 0:00:06]} O-O {[%emt 0:00:45]} 9. Nf3 {[%emt 0:05:29]} Nbd7 {[%emt 0:08:51]} 10. Bd3 {[%emt 0:09:12]} Nc5 {[%emt 0:07:02]} 11. Bc2 {[%emt 0:04:31]} a5 {[%emt 0:06:56]} 12. O-O {[%emt 0:02:06]} Bg4 {[%emt 0:01:38]} 13. Be3 {[%emt 0:00:56]} Bh5 {[%emt 0:14:25]} 14. h3 {[%emt 0:04:19]} Ra6 {[%emt 0:02:48]} 15. b3 {[%emt 0:12:44]} Bg6 {[%emt 0:06:49]} 16. Nxe5 {[%emt 0:02:24]} Bxe4 {[%emt 0:03:57]} 17. Nxe4 {[%emt 0:06:13]} Ncxe4 {[%emt 0:00:18]} 18. Qf3 {[%emt 0:00:24]} Nc5 {[%emt 0:00:05]} 19. Bd4 {[%emt 0:13:22]} Ncd7 {[%emt 0:05:21]} 20. Nxd7 {[%emt 0:14:10]} Nxd7 {[%emt 0:00:05]} 21. b4 {[%emt 0:01:18]} axb4 {[%emt 0:01:19]} 22. axb4 {[%emt 0:00:07]} Bf6 {[%emt 0:04:33]} 23. Rxa6 {[%emt 0:00:35]} Bxd4+ {[%emt 0:00:47]} 24. Kh1 {[%emt 0:00:03]} bxa6 {[%emt 0:01:10]} 25. Qe4 {[%emt 0:00:02]} Re8 {[%emt 0:01:17]} 26. Qxh7+ {[%emt 0:00:30]} Kf8 {[%emt 0:00:03]} 27. Qh8+ {[%emt 0:00:06]} Ke7 {[%emt 0:00:04]} 28. Qh4+ {[%emt 0:00:02]} Bf6 {[%emt 0:01:15]} 29. Re1+ {[%emt 0:00:07]} Kd6 {[%emt 0:00:57]} 30. c5+ {[%emt 0:00:03]} Nxc5 {[%emt 0:02:55]} 31. Qf4+ {[%emt 0:00:25]} Kd7 {[%emt 0:01:44]} 32. Bf5+ {[%emt 0:00:12]} Ne6 {[%emt 0:00:13]} 33. dxe6+ {[%emt 0:00:04]} Ke7 {[%emt 0:00:05]} 34. Qg4 {[%emt 0:03:58]} Kf8 {[%emt 0:00:38]} 35. Rd1 {[%emt 0:00:09]} Qb8 {[%emt 0:01:46]} 36. exf7 {[%emt 0:04:29]} Re5 {[%emt 0:01:31]} 37. Bg6 {[%emt 0:00:15]} Rg5 {[%emt 0:02:00]} 38. Re1 {[%emt 0:00:06]} 1-0

[Event "17th Aeroflot Open-A 2019"]
[Site "Moscow"]
[Date "2019.02.27"]
[Round "9.7"]
[White "Zhou, Jianchao"]
[Black "Korobov, Anton"]
[Result "1/2-1/2"]
[ECO "D45"]
[WhiteElo "2615"]
[BlackElo "2687"]
[Annotator "RC"]
[PlyCount "70"]
[EventDate "2019.02.19"]
[EventCountry "RUS"]
[SourceTitle "playchess.com"]
[Source "ChessBase"]
[SourceQuality "1"]
[TimeControl "40/5400+30:1800+30"]

1. d4 {[%emt 0:03:59]} d5 {[%emt 0:00:00]} 2. c4 {[%emt 0:00:04]} c6 {[%emt 0:00:00]} 3. Nf3 {[%emt 0:00:21]} Nf6 {[%emt 0:00:00]} 4. Nc3 {[%emt 0:00:30]} e6 {[%emt 0:00:00]} 5. e3 {[%emt 0:00:09]} Nbd7 {[%emt 0:00:00]} 6. Qc2 {[%emt 0:00:22]} Bd6 {[%emt 0:00:06]} 7. Bd3 {[%emt 0:00:13]} O-O {[%emt 0:00:08]} 8. O-O {[%emt 0:00:24]} dxc4 {[%emt 0:00:04]} 9. Bxc4 {[%emt 0:00:05]} b5 {[%emt 0:00:04]} 10. Be2 {[%emt 0:00:07]} Bb7 {[%emt 0:00:41]} 11. Bd2 {[%emt 0:03:10]} Re8 {[%emt 0:03:24]} 12. Ng5 {[%emt 0:06:14]} Bf8 {[%emt 0:11:56]} 13. Bf3 {[%emt 0:21:23]} Rc8 {[%emt 0:07:56]} 14. Nce4 {[%emt 0:13:16]} h6 {[%emt 0:06:45]} 15. Nxf6+ {[%emt 0:00:28]} Nxf6 {[%emt 0:00:05]} 16. Ne4 {[%emt 0:00:12]} Nxe4 {[%emt 0:00:09]} 17. Bxe4 {[%emt 0:00:28]} a5 {[%emt 0:01:33]} 18. a3 {[%emt 0:03:25]} b4 {[%emt 0:02:17]} 19. Qa4 {[%emt 0:17:46]} Bd6 {[%emt 0:15:40]} 20. axb4 {[%emt 0:08:06]} axb4 {[%emt 0:00:02]} 21. Bxb4 {[%emt 0:07:19]} Ra8 {[%emt 0:01:21]} 22. Ba5 {[%emt 0:00:19]} Bxh2+ {[%emt 0:00:24]} 23. Kxh2 {[%emt 0:00:01]} Qh4+ {[%emt 0:00:08]} 24. Kg1 {[%emt 0:00:01]} Qxe4 {[%emt 0:00:08]} 25. Qb3 {[%emt 0:00:38]} Ba6 {[%emt 0:02:30]} 26. Rfc1 {[%emt 0:00:44]} Bb5 {[%emt 0:01:17]} 27. Qd1 {[%emt 0:02:52]} Qg6 {[%emt 0:02:50]} 28. Bc7 {[%emt 0:00:44]} h5 {[%emt 0:01:45]} 29. Bg3 {[%emt 0:03:08]} Qh7 {[%emt 0:06:44]} 30. Rxa8 {[%emt 0:02:09]} Rxa8 {[%emt 0:00:08]} 31. Ra1 {[%emt 0:00:27]} Rxa1 {[%emt 0:03:01]} 32. Qxa1 {[%emt 0:00:01]} Qe4 {[%emt 0:00:26]} 33. Qe1 {[%emt 0:03:02]} f6 {[%emt 0:01:44]} 34. f3 {[%emt 0:00:29]} Qc2 {[%emt 0:00:23]} 35. b4 {[%emt 0:01:18]} Qe2 {[%emt 0:00:59]} 1/2-1/2

[Event "17th Aeroflot Open-A 2019"]
[Site "Moscow"]
[Date "2019.02.27"]
[Round "9.8"]
[White "Maghsoodloo, Parham"]
[Black "Vaibhav, Suri"]
[Result "1/2-1/2"]
[ECO "A46"]
[WhiteElo "2666"]
[BlackElo "2575"]
[Annotator "ChessBase"]
[PlyCount "122"]
[EventDate "2019.02.19"]
[EventCountry "RUS"]
[SourceTitle "playchess.com"]
[Source "ChessBase"]
[SourceQuality "1"]
[TimeControl "40/5400+30:1800+30"]

1. d4 {[%emt 0:04:32]} Nf6 {[%emt 0:00:00]} 2. Nf3 {[%emt 0:00:30]} e6 {[%emt 0:00:34]} 3. Bg5 {[%emt 0:01:23]} c5 {[%emt 0:01:53]} 4. e3 {[%emt 0:00:07]} cxd4 {[%emt 0:01:20]} 5. exd4 {[%emt 0:00:09]} Be7 {[%emt 0:00:06]} 6. Bd3 {[%emt 0:03:19]} b6 {[%emt 0:00:11]} 7. O-O {[%emt 0:00:23]} Bb7 {[%emt 0:00:22]} 8. Nbd2 {[%emt 0:02:23]} O-O {[%emt 0:00:35]} 9. Re1 {[%emt 0:02:32]} Nc6 {[%emt 0:00:27]} 10. c3 {[%emt 0:00:16]} Nd5 {[%emt 0:00:09]} 11. Bxe7 {[%emt 0:01:03]} Ncxe7 {[%emt 0:00:21]} 12. Bf1 {[%emt 0:04:52]} Nf6 {[%emt 0:05:35]} 13. a4 {[%emt 0:09:18]} a6 {[%emt 0:00:54]} 14. Qb3 {[%emt 0:03:00]} Rb8 {[%emt 0:08:21]} 15. Qa3 {[%emt 0:23:11]} d6 {[%emt 0:15:03]} 16. Ng5 {[%emt 0:01:22]} Qc7 {[%emt 0:05:32]} 17. f3 {[%emt 0:02:21]} Rfd8 {[%emt 0:00:41]} 18. Nge4 {[%emt 0:01:08]} Ne8 {[%emt 0:11:23]} 19. Nf2 {[%emt 0:09:13]} e5 {[%emt 0:03:24]} 20. a5 b5 21. dxe5 {[%emt 0:01:17]} dxe5 {[%emt 0:00:32]} 22. Nb3 {[%emt 0:00:19]} Rbc8 {[%emt 0:11:30]} 23. Nd3 {[%emt 0:02:23]} Rd5 {[%emt 0:01:09]} 24. Rac1 {[%emt 0:05:55]} e4 {[%emt 0:17:37]} 25. fxe4 {[%emt 0:02:49]} Rh5 {[%emt 0:00:24]} 26. e5 {[%emt 0:01:00]} Ng6 {[%emt 0:02:06]} 27. Qc5 {[%emt 0:02:26]} Qb8 {[%emt 0:00:17]} 28. Qb6 {[%emt 0:02:52]} Rc6 {[%emt 0:01:48]} 29. Qe3 {[%emt 0:00:43]} f6 {[%emt 0:08:50]} 30. Nd4 {[%emt 0:03:47]} Rc8 {[%emt 0:00:04]} 31. Be2 {[%emt 0:02:46]} Rg5 {[%emt 0:00:13]} 32. Nf3 {[%emt 0:00:11]} Bxf3 {[%emt 0:01:40]} 33. Bxf3 {[%emt 0:00:02]} Nxe5 {[%emt 0:00:09]} 34. Nxe5 {[%emt 0:03:44]} Rxe5 {[%emt 0:00:12]} 35. Qf2 {[%emt 0:00:40]} b4 {[%emt 0:03:35]} 36. Rxe5 {[%emt 0:04:02]} Qxe5 {[%emt 0:00:01]} 37. Bg4 {[%emt 0:00:00]} Rb8 {[%emt 0:00:09]} 38. cxb4 {[%emt 0:00:09]} Rxb4 {[%emt 0:00:12]} 39. Re1 {[%emt 0:01:33]} Re4 {[%emt 0:01:22]} 40. Rxe4 {[%emt 0:00:00]} Qxe4 {[%emt 0:00:00]} 41. h3 {[%emt 0:02:03]} Nc7 {[%emt 0:11:46]} 42. Qd2 {[%emt 0:02:29]} Qe5 {[%emt 0:02:03]} 43. Be2 {[%emt 0:02:15]} h5 {[%emt 0:02:43]} 44. Kf1 {[%emt 0:10:06]} Kh7 {[%emt 0:03:40]} 45. Ke1 {[%emt 0:00:37]} g5 {[%emt 0:08:55]} 46. Kd1 {[%emt 0:05:52]} Kg6 {[%emt 0:00:49]} 47. Qc2+ {[%emt 0:03:11]} Kh6 {[%emt 0:01:01]} 48. Bxh5 {[%emt 0:05:29]} f5 {[%emt 0:00:01]} 49. Be2 {[%emt 0:01:00]} Qxa5 {[%emt 0:00:37]} 50. Qc6+ {[%emt 0:00:01]} Kg7 {[%emt 0:00:09]} 51. Qd7+ {[%emt 0:00:03]} Kf6 {[%emt 0:02:57]} 52. Qd8+ {[%emt 0:03:12]} Ke5 {[%emt 0:01:13]} 53. Qxg5 {[%emt 0:00:29]} Nd5 {[%emt 0:00:24]} 54. Qg7+ {[%emt 0:00:42]} Ke4 {[%emt 0:00:05]} 55. Qb7 {[%emt 0:00:54]} Kd4 {[%emt 0:01:48]} 56. Qa7+ {[%emt 0:00:23]} Ke4 {[%emt 0:00:35]} 57. Bf3+ {[%emt 0:01:11]} Kd3 {[%emt 0:00:15]} 58. Be2+ {[%emt 0:00:04]} Ke4 {[%emt 0:00:01]} 59. Qb7 {[%emt 0:00:22]} Kd4 {[%emt 0:00:16]} 60. Qg7+ {[%emt 0:00:24]} Ke4 {[%emt 0:00:07]} 61. Qb7 {[%emt 0:01:00]} Ke5 1/2-1/2

[Event "17th Aeroflot Open-A 2019"]
[Site "Moscow"]
[Date "2019.02.27"]
[Round "9.9"]
[White "Lupulescu, Constantin"]
[Black "Sjugirov, Sanan"]
[Result "1/2-1/2"]
[ECO "D85"]
[WhiteElo "2610"]
[BlackElo "2663"]
[Annotator "ChessBase"]
[PlyCount "153"]
[EventDate "2019.02.19"]
[EventCountry "RUS"]
[SourceTitle "playchess.com"]
[Source "ChessBase"]
[SourceQuality "1"]
[TimeControl "40/5400+30:1800+30"]

1. d4 {[%emt 0:00:00]} Nf6 {[%emt 0:05:48]} 2. c4 {[%emt 0:00:00]} g6 {[%emt 0:00:24]} 3. Nc3 {[%emt 0:00:00]} d5 {[%emt 0:00:08]} 4. cxd5 {[%emt 0:00:04]} Nxd5 {[%emt 0:00:06]} 5. e4 {[%emt 0:00:09]} Nxc3 {[%emt 0:00:17]} 6. bxc3 {[%emt 0:00:05]} Bg7 {[%emt 0:00:10]} 7. Nf3 {[%emt 0:00:17]} c5 {[%emt 0:01:02]} 8. Be3 {[%emt 0:00:06]} Qa5 {[%emt 0:00:53]} 9. Nd2 {[%emt 0:00:18]} O-O {[%emt 0:06:15]} 10. Be2 {[%emt 0:01:43]} b6 {[%emt 0:01:08]} 11. O-O {[%emt 0:01:10]} Ba6 {[%emt 0:00:07]} 12. Rc1 {[%emt 0:01:39]} Qxa2 {[%emt 0:18:09]} 13. Ra1 {[%emt 0:01:02]} Bxe2 {[%emt 0:00:28]} 14. Qxe2 {[%emt 0:00:05]} Qe6 {[%emt 0:00:06]} 15. d5 {[%emt 0:00:13]} Qc8 {[%emt 0:02:19]} 16. Ra3 {[%emt 0:00:23]} e6 {[%emt 0:12:02]} 17. Nc4 {[%emt 0:11:18]} Nd7 {[%emt 0:01:49]} 18. dxe6 {[%emt 0:01:19]} fxe6 {[%emt 0:00:17]} 19. f4 {[%emt 0:06:51]} Nf6 {[%emt 0:04:13]} 20. e5 {[%emt 0:09:22]} Nd5 {[%emt 0:00:32]} 21. Nd6 {[%emt 0:00:30]} Qc6 {[%emt 0:11:21]} 22. c4 {[%emt 0:00:55]} Ne7 {[%emt 0:00:46]} 23. Rd1 {[%emt 0:09:23]} a6 {[%emt 0:02:53]} 24. h4 {[%emt 0:07:27]} b5 {[%emt 0:02:02]} 25. h5 {[%emt 0:01:06]} gxh5 {[%emt 0:05:15]} 26. Qxh5 {[%emt 0:08:38]} Nf5 {[%emt 0:00:14]} 27. Bc1 {[%emt 0:15:04]} Nxd6 {[%emt 0:00:34]} 28. exd6 {[%emt 0:00:28]} Kh8 {[%emt 0:06:12]} 29. d7 {[%emt 0:08:26]} Rad8 {[%emt 0:01:49]} 30. cxb5 {[%emt 0:02:12]} axb5 {[%emt 0:01:19]} 31. Rh3 {[%emt 0:00:36]} Qe4 {[%emt 0:00:17]} 32. Qxc5 {[%emt 0:00:34]} e5 {[%emt 0:04:37]} 33. Re3 {[%emt 0:06:42]} Qb7 {[%emt 0:04:07]} 34. Qd5 {[%emt 0:02:13]} Qxd5 {[%emt 0:06:53]} 35. Rxd5 {[%emt 0:00:04]} exf4 {[%emt 0:00:13]} 36. Re4 {[%emt 0:02:10]} Bf6 {[%emt 0:00:52]} 37. Bxf4 {[%emt 0:02:44]} Rf7 {[%emt 0:01:47]} 38. Bh6 {[%emt 0:00:49]} Re7 {[%emt 0:00:36]} 39. Rxe7 {[%emt 0:01:38]} Bxe7 {[%emt 0:00:00]} 40. Be3 {[%emt 0:00:00]} Rb8 {[%emt 0:00:00]} 41. Re5 {[%emt 0:07:16]} Bd8 {[%emt 0:02:09]} 42. Re8+ {[%emt 0:02:32]} Kg7 {[%emt 0:00:04]} 43. Bg5 {[%emt 0:00:15]} Bb6+ {[%emt 0:01:33]} 44. Kh2 {[%emt 0:01:01]} Rb7 {[%emt 0:01:00]} 45. d8=Q {[%emt 0:00:30]} Bxd8 {[%emt 0:00:07]} 46. Rxd8 {[%emt 0:00:06]} b4 {[%emt 0:01:00]} 47. Bc1 {[%emt 0:00:50]} Kg6 {[%emt 0:04:04]} 48. Rd5 {[%emt 0:03:25]} b3 {[%emt 0:00:28]} 49. Bb2 {[%emt 0:00:07]} Rb6 {[%emt 0:00:40]} 50. Kh3 {[%emt 0:02:40]} h5 {[%emt 0:02:44]} 51. Kg3 {[%emt 0:05:12]} Kh6 {[%emt 0:00:20]} 52. Kf4 {[%emt 0:02:17]} Kg6 {[%emt 0:00:35]} 53. Rg5+ {[%emt 0:00:37]} Kh6 {[%emt 0:00:05]} 54. Rg8 {[%emt 0:03:02]} Kh7 {[%emt 0:02:17]} 55. Rh8+ {[%emt 0:00:50]} Kg6 {[%emt 0:00:04]} 56. Rg8+ {[%emt 0:01:26]} Kh7 {[%emt 0:00:02]} 57. Rg3 {[%emt 0:00:36]} Kh6 {[%emt 0:01:30]} 58. Re3 {[%emt 0:01:29]} Kg6 {[%emt 0:00:39]} 59. Re4 {[%emt 0:00:48]} Rc6 {[%emt 0:01:23]} 60. g3 {[%emt 0:01:06]} Rc2 {[%emt 0:01:49]} 61. Bd4 {[%emt 0:01:00]} Rc4 {[%emt 0:03:21]} 62. Ke5 {[%emt 0:00:54]} Rb4 {[%emt 0:01:28]} 63. Re2 {[%emt 0:01:53]} Kg5 {[%emt 0:00:14]} 64. Rb2 {[%emt 0:00:58]} Kg4 {[%emt 0:01:06]} 65. Bf2 {[%emt 0:00:15]} Kf3 {[%emt 0:00:52]} 66. Kd5 {[%emt 0:00:48]} Rb7 {[%emt 0:02:01]} 67. Kc4 {[%emt 0:00:40]} Rc7+ {[%emt 0:00:42]} 68. Bc5 {[%emt 0:00:14]} Kxg3 {[%emt 0:00:22]} 69. Rxb3+ {[%emt 0:00:07]} Kg2 {[%emt 0:00:21]} 70. Kd5 {[%emt 0:00:31]} Rxc5+ {[%emt 0:01:06]} 71. Kxc5 {[%emt 0:00:05]} h4 {[%emt 0:00:03]} 72. Kd4 {[%emt 0:00:35]} h3 {[%emt 0:00:05]} 73. Rb2+ {[%emt 0:00:14]} Kg3 {[%emt 0:00:22]} 74. Ke3 {[%emt 0:00:18]} h2 {[%emt 0:00:14]} 75. Rb1 {[%emt 0:00:37]} Kg2 {[%emt 0:00:05]} 76. Rh1 {[%emt 0:00:15]} Kxh1 {[%emt 0:00:14]} 77. Kf2 1/2-1/2

[Event "17th Aeroflot Open-A 2019"]
[Site "Moscow"]
[Date "2019.02.27"]
[Round "9.10"]
[White "Anton Guijarro, David"]
[Black "Petrosyan, Manuel"]
[Result "1-0"]
[ECO "A28"]
[WhiteElo "2642"]
[BlackElo "2564"]
[Annotator "ChessBase"]
[PlyCount "85"]
[EventDate "2019.02.19"]
[EventCountry "RUS"]
[SourceTitle "playchess.com"]
[Source "ChessBase"]
[SourceQuality "1"]
[TimeControl "40/5400+30:1800+30"]

1. c4 {[%emt 0:00:00]} e5 {[%emt 0:06:13]} 2. Nc3 {[%emt 0:00:08]} Nf6 {[%emt 0:00:31]} 3. Nf3 {[%emt 0:00:21]} Nc6 {[%emt 0:00:06]} 4. e4 {[%emt 0:00:13]} Bd6 {[%emt 0:01:22]} 5. a3 {[%emt 0:00:57]} O-O {[%emt 0:00:32]} 6. d3 {[%emt 0:01:35]} a5 {[%emt 0:03:20]} 7. Be2 {[%emt 0:08:17]} Re8 {[%emt 0:02:28]} 8. Be3 {[%emt 0:06:18]} h6 {[%emt 0:10:55]} 9. O-O {[%emt 0:02:56]} Ng4 {[%emt 0:02:34]} 10. h3 {[%emt 0:06:03]} Nxe3 {[%emt 0:02:06]} 11. fxe3 {[%emt 0:00:06]} Bc5 {[%emt 0:08:09]} 12. d4 {[%emt 0:16:02]} Ba7 {[%emt 0:06:55]} 13. Nb5 {[%emt 0:02:47]} d6 {[%emt 0:02:49]} 14. Bd3 {[%emt 0:07:29]} Bb8 {[%emt 0:10:27]} 15. Qb3 {[%emt 0:08:02]} a4 {[%emt 0:05:11]} 16. Qc2 {[%emt 0:00:48]} Ne7 {[%emt 0:03:37]} 17. Nc3 {[%emt 0:06:10]} Bd7 {[%emt 0:03:22]} 18. Rad1 {[%emt 0:00:08]} Ng6 {[%emt 0:01:25]} 19. Kh1 {[%emt 0:03:44]} Rf8 {[%emt 0:02:54]} 20. Qf2 {[%emt 0:04:33]} Ra5 {[%emt 0:00:20]} 21. Bc2 Ba7 22. c5 {[%emt 0:08:05]} dxc5 {[%emt 0:08:38]} 23. dxe5 {[%emt 0:00:10]} Qc8 {[%emt 0:02:56]} 24. Nd5 {[%emt 0:01:22]} Bb5 {[%emt 0:01:40]} 25. Rfe1 {[%emt 0:02:55]} Re8 {[%emt 0:00:42]} 26. e6 {[%emt 0:01:31]} fxe6 {[%emt 0:01:53]} 27. Nc3 {[%emt 0:00:30]} Rf8 {[%emt 0:00:09]} 28. Nxb5 {[%emt 0:02:33]} Rxb5 {[%emt 0:00:04]} 29. Bxa4 {[%emt 0:00:07]} Rb6 {[%emt 0:01:40]} 30. Qg3 {[%emt 0:01:19]} Kh7 {[%emt 0:01:40]} 31. e5 {[%emt 0:02:07]} Rxb2 {[%emt 0:00:36]} 32. Bd7 {[%emt 0:01:14]} Qd8 {[%emt 0:00:11]} 33. Bxe6 {[%emt 0:01:21]} Qe8 {[%emt 0:01:05]} 34. Bc4 {[%emt 0:01:19]} Rb6 {[%emt 0:03:06]} 35. Rb1 {[%emt 0:03:12]} Kh8 {[%emt 0:01:08]} 36. Rxb6 {[%emt 0:00:53]} Bxb6 {[%emt 0:00:05]} 37. e6 {[%emt 0:00:54]} Rf6 {[%emt 0:00:09]} 38. Ne5 {[%emt 0:00:56]} Nf8 {[%emt 0:01:49]} 39. Nf7+ {[%emt 0:00:56]} Kh7 {[%emt 0:00:10]} 40. Qh4 {[%emt 0:00:00]} Qe7 {[%emt 0:00:00]} 41. Qe4+ {[%emt 0:06:18]} Kg8 {[%emt 0:13:08]} 42. Rd1 {[%emt 0:04:00]} Rf2 {[%emt 0:07:47]} 43. Rd7 {[%emt 0:06:34]} 1-0

[Event "17th Aeroflot Open-A 2019"]
[Site "Moscow"]
[Date "2019.02.27"]
[Round "9.12"]
[White "Ganguly, Surya Shekhar"]
[Black "Hakobyan, Aram"]
[Result "1/2-1/2"]
[ECO "B01"]
[WhiteElo "2636"]
[BlackElo "2545"]
[Annotator "ChessBase"]
[PlyCount "85"]
[EventDate "2019.02.19"]
[EventCountry "RUS"]
[SourceTitle "playchess.com"]
[Source "ChessBase"]
[SourceQuality "1"]
[TimeControl "40/5400+30:1800+30"]

1. e4 {[%emt 0:00:02]} d5 {[%emt 0:02:26]} 2. exd5 {[%emt 0:00:09]} Qxd5 {[%emt 0:00:06]} 3. Nc3 {[%emt 0:00:06]} Qd8 {[%emt 0:00:06]} 4. d4 {[%emt 0:01:45]} Nf6 {[%emt 0:00:09]} 5. Nf3 {[%emt 0:00:28]} g6 {[%emt 0:00:18]} 6. Bc4 {[%emt 0:00:34]} Bg7 {[%emt 0:00:09]} 7. O-O {[%emt 0:00:14]} O-O {[%emt 0:00:05]} 8. h3 {[%emt 0:00:22]} a6 {[%emt 0:00:04]} 9. a4 {[%emt 0:00:26]} Nc6 {[%emt 0:00:05]} 10. Re1 {[%emt 0:05:07]} e6 {[%emt 0:00:39]} 11. Bf4 {[%emt 0:13:12]} b6 {[%emt 0:04:31]} 12. Qe2 {[%emt 0:18:47]} Bb7 {[%emt 0:08:25]} 13. Rad1 {[%emt 0:02:53]} Ne7 {[%emt 0:02:42]} 14. Ne5 {[%emt 0:05:13]} Nfd5 {[%emt 0:04:09]} 15. Nxd5 {[%emt 0:00:25]} Nxd5 {[%emt 0:00:55]} 16. Bg3 {[%emt 0:00:26]} Qe7 {[%emt 0:09:35]} 17. c3 {[%emt 0:01:07]} Rfd8 {[%emt 0:05:28]} 18. Bb3 {[%emt 0:07:15]} Rac8 19. Bc4 Ra8 {[%emt 0:11:17]} 20. h4 {[%emt 0:05:44]} h5 {[%emt 0:10:27]} 21. Bd3 {[%emt 0:13:01]} Bf6 {[%emt 0:07:03]} 22. Be4 {[%emt 0:01:20]} c6 {[%emt 0:06:54]} 23. c4 {[%emt 0:01:44]} Nb4 {[%emt 0:00:22]} 24. Qf3 {[%emt 0:00:15]} Rac8 {[%emt 0:01:40]} 25. a5 {[%emt 0:02:21]} b5 {[%emt 0:02:30]} 26. b3 {[%emt 0:01:17]} Kg7 {[%emt 0:02:17]} 27. Qc3 {[%emt 0:03:28]} bxc4 {[%emt 0:03:20]} 28. bxc4 {[%emt 0:00:47]} c5 {[%emt 0:01:57]} 29. Bxb7 Qxb7 30. dxc5 {[%emt 0:00:41]} Nc6 {[%emt 0:06:21]} 31. Qf3 {[%emt 0:07:09]} Nxa5 {[%emt 0:02:16]} 32. Rxd8 {[%emt 0:05:30]} Rxd8 {[%emt 0:02:35]} 33. c6 {[%emt 0:00:08]} Qb3 {[%emt 0:03:37]} 34. c7 {[%emt 0:02:42]} Rc8 {[%emt 0:00:17]} 35. Nd7 {[%emt 0:01:35]} Qxf3 {[%emt 0:01:01]} 36. gxf3 {[%emt 0:00:01]} e5 {[%emt 0:01:57]} 37. Rxe5 {[%emt 0:01:04]} Bxe5 {[%emt 0:02:14]} 38. Bxe5+ {[%emt 0:00:02]} f6 {[%emt 0:00:01]} 39. Nb6 {[%emt 0:00:29]} fxe5 {[%emt 0:00:48]} 40. Nxc8 {[%emt 0:00:00]} Nxc4 {[%emt 0:00:00]} 41. Kf1 {[%emt 0:14:09]} Kf6 {[%emt 0:04:35]} 42. Ke2 {[%emt 0:02:13]} Ke6 {[%emt 0:00:16]} 43. Kd3 {[%emt 0:03:22]} 1/2-1/2

[Event "17th Aeroflot Open-A 2019"]
[Site "Moscow"]
[Date "2019.02.27"]
[Round "9.13"]
[White "Fedoseev, Vladimir"]
[Black "Nihal Sarin"]
[Result "1/2-1/2"]
[ECO "A45"]
[WhiteElo "2715"]
[BlackElo "2578"]
[Annotator "RC"]
[PlyCount "37"]
[EventDate "2019.02.19"]
[EventCountry "RUS"]
[SourceTitle "playchess.com"]
[Source "ChessBase"]
[SourceQuality "1"]
[TimeControl "40/5400+30:1800+30"]

1. d4 {[%emt 0:10:32]} Nf6 {[%emt 0:00:01]} 2. Bg5 {[%emt 0:00:06]} d5 {[%emt 0:00:47]} 3. e3 {[%emt 0:01:14]} c5 {[%emt 0:00:38]} 4. c3 {[%emt 0:00:22]} Nc6 {[%emt 0:00:04]} 5. Nd2 {[%emt 0:00:24]} cxd4 {[%emt 0:00:20]} 6. exd4 {[%emt 0:00:08]} h6 {[%emt 0:00:04]} 7. Bxf6 {[%emt 0:00:25]} gxf6 {[%emt 0:00:07]} 8. Bb5 {[%emt 0:00:05]} Qb6 {[%emt 0:00:13]} 9. Qb3 {[%emt 0:00:07]} a6 {[%emt 0:02:09]} 10. Ba4 {[%emt 0:00:33]} Qxb3 {[%emt 0:04:58]} 11. axb3 {[%emt 0:00:13]} Bd7 {[%emt 0:00:57]} 12. Ngf3 {[%emt 0:00:37]} e6 {[%emt 0:00:47]} 13. b4 {[%emt 0:00:54]} Bd6 {[%emt 0:02:50]} 14. O-O {[%emt 0:00:13]} Ke7 {[%emt 0:11:03]} 15. Rfe1 {[%emt 0:06:03]} Rhc8 {[%emt 0:05:00]} 16. Ra2 {[%emt 0:03:10]} Ra7 {[%emt 0:02:39]} 17. Nf1 {[%emt 0:09:05]} b5 {[%emt 0:07:47]} 18. Bb3 {[%emt 0:01:42]} Kf8 {[%emt 0:01:04]} 19. Rea1 {[%emt 0:14:25]} 1/2-1/2